bitfinex/quotes_ETHUSD_20241001
["timestamp","ask_amount","ask_price","bid_price","bid_amount"]
[1727782114248,0.7835,2637.8,2637.5,3.9690238]
[1727782115402,0.7835,2637.8,2637.5,4.88165168]
[1727782122501,0.7835,2637.8,2637.5,1.09021168]
[1727782122705,0.7835,2637.8,2637.5,0.1775838]
[1727782122911,0.7835,2637.8,2637.5,3.9689938]
[1727782124674,0.7835,2637.8,2637.5,3.9689438]
[1727782128380,1.58410033,2638.0,2637.5,3.9689438]
[1727782128381,2.34350033,2638.0,2637.5,3.9689438]
[1727782128690,6.13425033,2638.0,2637.6,3.79121]
[1727782128886,6.13425033,2638.0,2637.7,0.17733477]
[1727782129289,0.7594,2638.0,2637.8,3.79094]
[1727782129526,0.7594,2638.0,2637.9,0.17709896]
[1727782130376,6.14248033,2638.2,2637.9,0.17709896]
[1727782131334,1.58410033,2638.1,2637.7,4.56716048]
[1727782131483,5.37471033,2638.1,2638.0,0.17696789]
[1727782131684,5.37471033,2638.1,2637.7,3.79117]
[1727782131897,5.37471033,2638.1,2637.8,0.17720369]
[1727782132099,5.37471033,2638.1,2637.7,3.79117]
[1727782132314,5.37471033,2638.1,2637.8,0.17720369]
[1727782132509,5.37471033,2638.1,2637.7,4.632187]
[1727782132816,5.37471033,2638.1,2637.8,0.17720369]
[1727782133183,5.37471033,2638.1,2637.7,4.632187]
[1727782133386,5.37471033,2638.1,2637.9,0.17708579]
[1727782133717,5.37471033,2638.1,2638.0,0.17696789]
[1727782133880,1.58410033,2638.1,2637.7,3.79117]
[1727782134076,1.58410033,2638.1,2637.8,0.17720369]
[1727782134500,1.58410033,2638.1,2637.7,4.632187]
[1727782134808,1.58410033,2638.0,2637.8,0.17720369]
[1727782135011,5.37473033,2638.1,2637.8,0.17720369]
[1727782135210,5.37473033,2638.1,2637.7,4.632187]
[1727782135415,5.37473033,2638.1,2637.9,0.17708579]
[1727782135717,5.37473033,2638.1,2638.0,0.17696789]
[1727782135918,5.77394401,2638.1,2637.7,4.632187]
[1727782136134,1.58753917,2638.0,2637.8,1.10232239]
[1727782137935,1.58753917,2638.0,2637.8,4.89334239]
[1727782139231,1.58753917,2638.0,2637.8,8.68427239]
[1727782139433,1.58753917,2638.0,2637.9,4.55489]
[1727782139596,1.58753917,2638.2,2637.9,4.55489]
[1727782139811,1.58753917,2638.2,2638.0,3.79072]
[1727782140046,1.58753917,2638.2,2638.0,3.79075]
[1727782140343,1.58753917,2638.3,2638.1,3.96739241]
[1727782140549,1.58753917,2638.3,2638.1,0.17679241]
[1727782140840,1.58753917,2638.3,2638.1,4.55115911]
[1727782141028,1.58753917,2638.4,2638.1,4.55115911]
[1727782141235,1.58753917,2638.3,2638.1,0.76058911]
[1727782141424,1.58753917,2638.4,2638.1,0.76058911]
[1727782141624,1.58753917,2638.3,2638.1,0.76058911]
[1727782141929,5.37773917,2638.4,2638.2,0.83419391]
[1727782142134,5.37773917,2638.4,2638.1,0.17679241]
[1727782142453,5.40630403,2638.4,2638.3,0.17655667]
[1727782142610,7.39125172,2638.4,2638.2,0.17667453]
[1727782142943,7.39125172,2638.4,2637.9,5.66124464]
[1727782142944,6.14658769,2638.3,2637.9,5.66124464]
[1727782143150,6.14658769,2638.3,2637.9,1.10642464]
[1727782143151,5.40660403,2638.2,2637.9,1.10642464]
[1727782143456,1.61610403,2638.0,2637.7,19.43]
[1727782143812,6.13523769,2638.1,2637.7,19.43]
[1727782144015,1.58757769,2638.0,2637.8,2.701242]
[1727782144651,1.58757769,2638.0,2637.6,7.58242]
[1727782145455,1.58757769,2638.0,2637.6,7.58244]
[1727782145760,1.58757769,2638.0,2637.6,3.79119]
[1727782146357,1.58757769,2638.0,2637.7,3.79116]
[1727782146562,6.13523769,2638.1,2637.7,3.79116]
[1727782146720,2.34457769,2638.1,2637.7,4.46990018]
[1727782146920,1.58757769,2638.0,2637.7,4.46990018]
[1727782147455,1.58757769,2638.0,2637.7,0.67874018]
[1727782147650,1.58757769,2638.0,2637.8,3.79103]
[1727782147819,2.34457769,2638.1,2637.8,3.79103]
[1727782148020,1.58757769,2638.0,2637.7,4.46989018]
[1727782148354,0.757,2638.1,2637.8,3.79102]
[1727782148355,2.34457769,2638.1,2637.8,3.79102]
[1727782148664,1.58757769,2638.2,2637.8,5.43193502]
[1727782148955,1.58757769,2638.3,2638.0,3.79068]
[1727782149169,1.58757769,2638.5,2638.1,4.60542]
[1727782149328,1.58757769,2638.5,2638.2,0.4681227]
[1727782149531,1.58757769,2638.5,2638.2,4.2585827]
[1727782149854,5.37768769,2638.5,2638.3,0.17651552]
[1727782150040,6.18434769,2638.4,2638.3,0.17651552]
[1727782150620,6.18434769,2638.4,2638.3,0.17651552]
[1727782150821,7.80045172,2638.4,2638.0,3.79074]
[1727782151051,7.58082,2638.3,2637.8,24.04706502]
[1727782151251,9.16836769,2638.3,2637.8,24.04706502]
[1727782151554,1.58757769,2638.2,2637.8,27.83802502]
[1727782151754,1.58757769,2638.2,2637.8,24.04701502]
[1727782151960,1.58757769,2638.2,2637.9,3.79085]
[1727782152730,1.58757769,2638.3,2637.9,3.79085]
[1727782152941,5.37790769,2638.3,2637.9,3.79085]
[1727782153379,9.16833769,2638.3,2637.8,24.04710502]
[1727782153872,5.37790769,2638.3,2637.9,3.79088]
[1727782154027,1.58757769,2638.2,2637.9,3.79088]
[1727782154230,1.58757769,2638.2,2637.8,24.04710502]
[1727782155032,1.58757769,2638.2,2637.8,27.83807502]
[1727782155456,1.58757769,2638.2,2637.8,24.04706502]
[1727782155777,5.37790769,2638.3,2637.9,0.64080245]
[1727782156536,5.37790769,2638.3,2637.8,8.40800502]
[1727782157038,1.58757769,2638.2,2637.8,4.61703502]
[1727782157566,1.58757769,2638.2,2637.9,3.79079]
[1727782158575,1.58757769,2638.2,2637.8,4.61703502]
[1727782159179,0.8177,2638.1,2637.8,4.61703502]
[1727782159339,0.8177,2638.1,2637.8,3.79094]
[1727782160036,2.40527769,2638.1,2637.8,3.79094]
[1727782160242,0.8177,2638.1,2637.8,3.79094]
[1727782160483,0.8177,2638.1,2637.8,7.5819]
[1727782161132,0.8177,2638.1,2637.8,3.79094]
[1727782162169,0.8177,2638.1,2637.8,5.368103]
[1727782164077,0.8177,2638.1,2637.8,9.159063]
[1727782164652,0.8177,2638.1,2637.9,3.79082]
[1727782164856,0.8177,2638.1,2637.9,3.96778068]
[1727782166775,1.58757769,2638.2,2637.9,3.96778068]
[1727782168396,1.58757769,2638.2,2637.9,0.17696068]
[1727782168693,1.58757769,2638.1,2637.9,0.17696068]
[1727782169379,5.37805769,2638.2,2637.9,0.17696068]
[1727782170659,1.58757769,2638.1,2637.9,0.17696068]
[1727782170877,5.37805769,2638.2,2637.9,0.17696068]
[1727782171086,1.58757769,2638.1,2637.9,0.17696068]
[1727782171467,1.58757769,2638.1,2637.9,3.96777068]
[1727782171777,1.58757769,2638.2,2637.9,3.96777068]
[1727782172782,1.58757769,2638.1,2637.9,3.96777068]
[1727782173590,1.58757769,2638.1,2637.9,0.17696068]
[1727782176702,1.58757769,2638.1,2637.7,3.79117]
[1727782177003,1.58757769,2638.1,2637.8,0.17708023]
[1727782177380,1.58757769,2638.1,2637.7,3.79117]
[1727782177381,1.58757769,2638.0,2637.7,3.79117]
[1727782177701,1.58757769,2638.0,2637.8,0.17708023]
[1727782178100,1.58757769,2638.0,2637.9,0.17696233]
[1727782178274,1.58757769,2638.0,2637.7,3.79117]
[1727782178481,1.58757769,2638.0,2637.8,0.17708023]
[1727782178682,1.58757769,2638.0,2637.7,3.79117]
[1727782178885,5.37819769,2638.1,2637.8,0.17708023]
[1727782179070,1.58757769,2638.0,2637.8,0.17708023]
[1727782179270,1.58757769,2638.0,2637.7,3.79117]
[1727782179473,6.16052769,2638.0,2637.9,0.17696233]
[1727782179994,6.16052769,2638.0,2637.6,7.58256]
[1727782180200,6.16052769,2638.0,2637.9,0.17696233]
[1727782180399,6.16052769,2638.0,2637.6,3.79126]
[1727782180705,6.55837643,2638.0,2637.6,3.79126]
[1727782181011,1.58829711,2637.9,2637.7,0.17719814]
[1727782182324,1.58829711,2638.0,2637.8,3.79103]
[1727782182533,1.58829711,2638.1,2637.9,0.65067514]
[1727782182822,1.58829711,2638.1,2637.9,3.96779233]
[1727782183023,1.58829711,2638.1,2638.0,3.79075]
[1727782183211,1.58829711,2638.3,2638.0,4.62305]
[1727782183389,1.98531888,2638.5,2638.2,3.79046]
[1727782183390,1.58829711,2638.4,2638.2,3.79046]
[1727782183832,1.58829711,2638.4,2638.3,0.17653855]
[1727782184025,1.58829711,2638.5,2638.3,5.19584041]
[1727782184341,1.58829711,2638.6,2638.3,1.40553041]
[1727782184510,1.58829711,2638.6,2638.3,4.79913855]
[1727782185131,1.58829711,2638.6,2638.4,3.79016]
[1727782185299,1.58829711,2638.7,2638.4,3.79016]
[1727782185493,1.58829711,2638.6,2638.5,0.17630285]
[1727782185918,1.58829711,2638.6,2638.3,4.6226]
[1727782186089,5.37805711,2638.7,2638.3,5.6255084]
[1727782186291,5.37805711,2638.7,2638.4,0.176345]
[1727782186737,1.58829711,2638.7,2638.4,0.176345]
[1727782187022,1.58829711,2638.7,2638.4,3.966455]
[1727782187832,1.58829711,2638.7,2638.4,0.176345]
[1727782188825,6.59007815,2638.8,2638.4,0.176345]
[1727782188826,3.79003,2638.5,2638.4,0.176345]
[1727782189031,4.56843,2638.5,2638.4,0.176345]
[1727782189330,3.79017,2638.4,2638.0,3.79068]
[1727782189488,3.79017,2638.4,2638.0,4.44206555]
[1727782189917,5.37846711,2638.4,2638.0,4.44206555]
[1727782190111,3.7904,2638.3,2637.9,0.7886]
[1727782190350,3.79032,2638.3,2637.9,0.7886]
[1727782190546,5.37861711,2638.3,2637.9,0.7886]
[1727782190849,5.37861711,2638.3,2637.9,4.57948]
[1727782191055,3.79032,2638.3,2637.9,4.57948]
[1727782191210,5.37861711,2638.3,2637.9,4.57948]
[1727782191644,3.79032,2638.3,2637.9,4.57948]
[1727782191854,5.37861711,2638.3,2637.9,4.57948]
[1727782192013,5.37861711,2638.3,2637.9,0.7886]
[1727782192441,3.79032,2638.3,2637.9,0.7886]
[1727782192626,5.37861711,2638.3,2637.9,0.7886]
[1727782194451,1.58829711,2638.2,2637.9,4.57945]
[1727782194657,1.58829711,2638.2,2638.0,0.17685598]
[1727782196224,1.58829711,2638.3,2638.0,0.17685598]
[1727782196725,1.58829711,2638.3,2638.0,3.96759598]
[1727782197339,1.58829711,2638.4,2638.0,3.96759598]
[1727782197734,1.58829711,2638.4,2638.1,3.79053]
[1727782198348,1.58829711,2638.4,2638.2,4.59404]
[1727782198577,1.58829711,2638.6,2638.2,4.59404]
[1727782198863,5.37821711,2638.6,2638.2,4.59404]
[1727782200447,1.58829711,2638.5,2638.2,4.59404]
[1727782200644,5.37835711,2638.5,2638.2,0.8036]
[1727782200849,5.37835711,2638.5,2638.1,3.79053]
[1727782201558,1.58829711,2638.5,2638.1,3.79053]
[1727782201757,1.58829711,2638.5,2638.2,3.79037]
[1727782202277,1.58829711,2638.5,2638.3,3.79023]
[1727782202474,1.58829711,2638.5,2638.3,4.57413]
[1727782202639,1.58829711,2638.6,2638.3,4.57413]
[1727782204981,1.58829711,2638.6,2638.3,4.57412]
[1727782205645,1.58829711,2638.6,2638.4,3.79011]
[1727782205980,1.58829711,2638.8,2638.5,3.79003]
[1727782206201,1.58829711,2638.8,2638.6,3.78988]
[1727782206478,4.57855,2639.0,2638.7,4.55034]
[1727782206479,1.58829711,2639.0,2638.7,4.55034]
[1727782206845,1.58829711,2639.1,2638.7,4.55034]
[1727782207181,5.37747711,2639.1,2638.7,4.55034]
[1727782207349,5.37747711,2639.1,2638.7,0.7606]
[1727782207546,3.78967,2638.8,2638.4,4.55068]
[1727782207746,1.61610403,2638.7,2638.2,19.43]
[1727782207947,3.78996,2638.6,2638.2,19.43]
[1727782208253,3.79006,2638.5,2638.2,19.43]
[1727782208786,5.37825711,2638.6,2638.2,19.43]
[1727782209083,5.37825711,2638.6,2638.2,23.22044]
[1727782209758,5.37825711,2638.6,2638.2,3.79044]
[1727782210560,5.37825711,2638.6,2638.0,4.72806598]
[1727782210762,3.79018,2638.4,2638.0,8.26396758]
[1727782210962,6.13603711,2638.5,2638.1,3.7906]
[1727782212348,0.7577,2638.5,2638.2,3.79046]
[1727782212551,1.58829711,2638.6,2638.2,3.79046]
[1727782212964,5.37820711,2638.6,2638.2,3.79046]
[1727782213567,5.37820711,2638.6,2638.1,3.79058]
[1727782214088,5.40643403,2638.3,2638.0,0.93745598]
[1727782214291,1.61610403,2638.1,2638.0,0.17685598]
[1727782214492,3.20440114,2638.3,2638.0,0.17685598]
[1727782215456,1.61610403,2638.3,2638.0,0.17685598]
[1727782215890,3.20440114,2638.3,2638.0,0.17685598]
[1727782216271,1.58829711,2638.4,2638.1,3.79054]
[1727782216471,1.58829711,2638.4,2638.1,4.55944]
[1727782217692,1.58829711,2638.4,2638.2,0.17642439]
[1727782218095,3.59830099,2638.5,2638.2,0.17642439]
[1727782218096,1.58829711,2638.5,2638.2,0.17642439]
[1727782219160,5.37832711,2638.5,2638.2,0.17642439]
[1727782219774,3.79003,2638.5,2638.2,0.17642439]
[1727782219972,1.58829711,2638.6,2638.2,0.70486778]
[1727782220179,1.58829711,2638.6,2638.3,3.79022]
[1727782220359,3.57053336,2638.7,2638.3,3.96665817]
[1727782220559,1.58829711,2638.7,2638.5,0.8171]
[1727782220764,6.99411114,2638.8,2638.5,0.8171]
[1727782220974,6.99411114,2638.8,2638.6,0.17608462]
[1727782223005,5.37766711,2639.0,2638.6,0.17608462]
[1727782223296,5.37777711,2638.9,2638.6,0.65439308]
[1727782225030,6.99373114,2639.0,2638.6,4.44427308]
[1727782225343,6.99373114,2639.0,2638.6,0.65439308]
[1727782225627,6.99373114,2639.0,2638.7,0.52614131]
[1727782226124,6.99383114,2639.0,2638.8,0.17584897]
[1727782226499,6.99383114,2639.0,2638.9,0.17565876]
[1727782226701,1.58829711,2639.1,2638.9,0.17565876]
[1727782226902,1.58829711,2639.0,2638.8,0.7857]
[1727782227106,1.58829711,2639.0,2638.9,0.17565876]
[1727782228235,1.58829711,2639.1,2638.9,0.17565876]
[1727782228547,5.37738711,2639.2,2638.9,0.17565876]
[1727782229928,1.58829711,2639.2,2638.9,0.17565876]
[1727782230133,5.37718711,2639.3,2638.9,1.08233177]
[1727782231556,5.37718711,2639.3,2638.9,0.17565876]
[1727782231557,0.808,2639.1,2638.9,0.17565876]
[1727782231716,5.40541403,2639.0,2638.6,0.8323]
[1727782232062,0.808,2638.7,2638.2,8.2423]
[1727782232355,1.61610403,2638.6,2638.2,12.03276]
[1727782232569,1.61610403,2638.6,2638.3,3.525326]
[1727782233264,1.61610403,2638.6,2638.3,7.315556]
[1727782233555,6.18605711,2638.7,2638.3,7.315636]
[1727782234353,0.808,2638.7,2638.4,0.17608835]
[1727782234562,2.39629711,2638.7,2638.4,0.17608835]
[1727782234922,0.808,2638.7,2638.4,0.17608835]
[1727782235252,0.808,2638.7,2638.4,3.96625835]
[1727782235823,5.37789711,2638.8,2638.4,0.17608835]
[1727782236725,9.16759711,2638.8,2638.4,0.17608835]
[1727782237034,3.78976,2638.7,2638.4,0.17608835]
[1727782237233,3.7899,2638.6,2638.4,0.17608835]
[1727782237431,0.7883,2638.5,2638.4,0.17608835]
[1727782237642,8.08136667,2638.5,2638.0,0.7899]
[1727782237851,8.08136667,2638.5,2638.4,0.17608835]
[1727782238058,9.66966378,2638.5,2638.1,3.79058]
[1727782238226,9.66966378,2638.5,2638.4,0.17608835]
[1727782238424,9.66966378,2638.5,2638.2,3.79044]
[1727782238425,2.37659711,2638.5,2638.2,3.79044]
[1727782238634,1.58829711,2638.6,2638.2,3.79044]
[1727782238842,5.37817711,2638.6,2638.3,0.17620621]
[1727782239427,1.58829711,2638.5,2638.3,0.17620621]
[1727782239773,1.58829711,2638.5,2638.1,3.79058]
[1727782240071,1.58829711,2638.5,2638.4,0.17608835]
[1727782240253,1.58829711,2638.5,2638.1,3.79058]
[1727782240429,1.58829711,2638.5,2638.4,0.17608835]
[1727782240629,1.58829711,2638.5,2638.1,3.79058]
[1727782240861,1.58829711,2638.5,2638.4,0.17608835]
[1727782241026,1.58829711,2638.5,2638.1,3.79058]
[1727782241230,5.37833711,2638.5,2638.4,0.17608835]
[1727782241429,5.37833711,2638.5,2638.1,3.79058]
[1727782241846,1.58829711,2638.5,2638.2,0.17632408]
[1727782243269,5.37833711,2638.5,2638.2,0.17632408]
[1727782243470,1.58829711,2638.5,2638.2,0.17632408]
[1727782243835,5.37833711,2638.5,2638.2,0.17632408]
[1727782245856,1.58829711,2638.5,2638.2,3.96668408]
[1727782246175,1.58829711,2638.6,2638.3,3.7903]
[1727782246396,1.58829711,2638.6,2638.3,0.17620621]
[1727782246694,5.37818711,2638.6,2638.2,3.79046]
[1727782246863,5.37818711,2638.6,2638.4,0.17608835]
[1727782247078,5.37818711,2638.6,2638.3,0.17631641]
[1727782247598,1.58829711,2638.7,2638.4,0.8104]
[1727782247888,1.98138882,2638.8,2638.5,3.79002]
[1727782247889,1.58829711,2638.8,2638.5,3.79002]
[1727782248595,5.37793711,2638.8,2638.4,4.60055]
[1727782248889,5.37793711,2638.8,2638.6,0.17596286]
[1727782249073,5.37793711,2638.8,2638.5,0.1760807]
[1727782249270,5.37793711,2638.8,2638.7,0.17584503]
[1727782249473,5.37793711,2638.8,2638.6,0.17596286]
[1727782249790,5.37793711,2638.8,2638.7,0.17584503]
[1727782250194,5.37793711,2638.8,2638.4,0.8104]
[1727782250488,5.37793711,2638.8,2638.7,0.17584503]
[1727782250696,5.37793711,2638.8,2638.4,0.8104]
[1727782250900,5.37793711,2638.8,2638.7,0.17584503]
[1727782251192,3.78974,2638.7,2638.2,3.79043]
[1727782251399,5.3747168,2638.7,2638.3,3.79031]
[1727782251789,6.1739168,2638.7,2638.3,3.79031]
[1727782252853,3.78992,2638.6,2638.2,5.315931]
[1727782253659,9.9637468,2638.7,2638.2,5.315931]
[1727782254200,3.78992,2638.6,2638.2,5.315931]
[1727782255132,5.3748968,2638.6,2638.2,5.315931]
[1727782255334,5.3748968,2638.6,2638.2,0.7674]
[1727782255501,8.87793347,2638.6,2638.1,7.58102]
[1727782255703,3.79003,2638.5,2638.1,3.79048]
[1727782256831,5.3750068,2638.5,2638.1,3.79048]
[1727782257133,8.87792347,2638.6,2638.1,3.79048]
[1727782257935,12.66790347,2638.6,2638.1,3.79048]
[1727782258102,1.5849768,2638.5,2638.1,3.79048]
[1727782258303,1.5849768,2638.5,2638.1,7.58102]
[1727782258612,12.66788347,2638.6,2638.1,3.79048]
[1727782258812,3.79006,2638.5,2638.1,3.79048]
[1727782259137,5.3750368,2638.5,2638.1,3.79048]
[1727782260997,3.79018,2638.4,2638.0,4.57782]
[1727782261202,4.54888,2638.4,2638.0,0.7871]
[1727782261541,1.6174924,2638.2,2638.0,4.57783]
[1727782261705,1.6174924,2638.2,2638.0,0.7871]
[1727782262040,1.6174924,2638.2,2637.8,0.7811]
[1727782262235,1.6174924,2638.0,2637.8,0.7811]
[1727782262437,3.2024692,2638.2,2637.9,3.79089]
[1727782262645,1.6174924,2638.2,2637.8,0.7811]
[1727782262936,5.4079524,2638.2,2637.8,4.57213]
[1727782263612,3.79046,2638.2,2637.8,4.57213]
[1727782264435,3.79046,2638.2,2637.9,0.1769541]
[1727782267910,3.79062,2638.1,2637.9,0.1769541]
[1727782268145,4.54682,2638.1,2637.9,0.1769541]
[1727782268458,4.54682,2638.1,2638.0,0.1768362]
[1727782268820,4.26091694,2638.1,2637.7,19.43]
[1727782269019,3.79076,2638.0,2637.8,0.177072]
[1727782269256,3.79076,2638.0,2637.7,19.43]
[1727782269557,3.79076,2638.0,2637.9,0.1769541]
[1727782269758,3.79076,2638.0,2637.8,0.177072]
[1727782270061,3.79076,2638.0,2637.9,0.1769541]
[1727782270559,3.79076,2638.0,2637.7,19.43]
[1727782270721,3.79076,2638.0,2637.9,0.1769541]
[1727782270923,3.79076,2638.0,2637.8,0.177072]
[1727782271235,3.79076,2638.0,2637.9,0.1769541]
[1727782271445,3.79076,2638.0,2637.7,19.43]
[1727782271656,3.79076,2638.0,2637.8,0.177072]
[1727782272172,3.79076,2638.0,2637.8,19.43]
[1727782272372,3.79076,2638.0,2637.9,0.1769541]
[1727782272584,8.05153694,2638.1,2637.9,0.1769541]
[1727782272774,3.79075,2638.0,2637.9,0.1769541]
[1727782274457,5.3757268,2638.0,2637.9,0.1769541]
[1727782274982,3.79075,2638.0,2637.9,0.1769541]
[1727782275141,5.37444251,2638.0,2637.9,0.1769541]
[1727782277511,5.7707281,2638.0,2637.9,0.1769541]
[1727782278495,3.79109,2637.8,2637.4,4.61468]
[1727782278691,3.79109,2637.8,2637.4,5.076148]
[1727782279396,3.79109,2637.8,2637.5,0.17749656]
[1727782280213,7.58224,2637.8,2637.5,0.17749656]
[1727782280896,3.79125,2637.7,2637.5,0.17749656]
[1727782281201,3.79132,2637.6,2637.5,0.17749656]
[1727782281567,3.79132,2637.6,2637.5,0.1775315]
[1727782282195,3.79132,2637.6,2637.5,0.17753314]
[1727782282575,3.79132,2637.6,2637.2,0.7905]
[1727782282784,3.79132,2637.6,2637.5,0.17753314]
[1727782282966,3.79132,2637.6,2637.2,1.627956]
[1727782283163,3.79132,2637.6,2637.5,0.17753314]
[1727782283404,3.79132,2637.6,2637.2,0.7905]
[1727782283604,3.79132,2637.6,2637.3,0.17776903]
[1727782283804,3.79125,2637.7,2637.3,4.2677369]
[1727782284022,0.7945,2637.8,2637.4,0.17765108]
[1727782284223,3.79103,2637.8,2637.4,3.96919108]
[1727782285332,5.37494979,2637.9,2637.4,0.17765108]
[1727782285333,3.79124,2637.7,2637.4,0.17765108]
[1727782285619,5.40978371,2637.5,2637.4,0.17765108]
[1727782285823,5.40978371,2637.5,2637.2,0.7905]
[1727782286009,5.40978371,2637.5,2637.3,0.17783156]
[1727782286211,5.40978371,2637.5,2637.2,0.7905]
[1727782286384,5.40978371,2637.5,2637.3,0.17783321]
[1727782286585,1.61832371,2637.5,2637.2,0.7905]
[1727782286790,5.40988371,2637.5,2637.3,0.17785132]
[1727782286992,5.40988371,2637.5,2637.2,0.7905]
[1727782287219,5.40988371,2637.5,2637.3,0.17785132]
[1727782287491,5.40988371,2637.5,2637.2,0.7905]
[1727782287697,5.40988371,2637.5,2637.4,0.17773337]
[1727782287900,5.40988371,2637.5,2637.3,0.17785132]
[1727782288099,5.40988371,2637.5,2637.4,0.17773337]
[1727782288514,5.40988371,2637.5,2637.2,0.7905]
[1727782288848,5.40988371,2637.5,2637.3,0.17785132]
[1727782289012,5.40988371,2637.5,2637.2,0.7905]
[1727782289209,5.40988371,2637.5,2637.3,0.17785132]
[1727782289451,5.40988371,2637.5,2637.2,0.7905]
[1727782289612,5.40988371,2637.5,2637.3,0.17785132]
[1727782289810,5.40988371,2637.5,2637.2,0.7905]
[1727782290015,5.40980371,2637.5,2637.3,0.17785132]
[1727782290226,5.40980371,2637.5,2637.2,0.7905]
[1727782290433,5.40980371,2637.5,2637.3,0.17785132]
[1727782290652,3.79163,2637.4,2637.2,0.7905]
[1727782290822,1.61832371,2637.3,2637.0,0.7556]
[1727782291027,3.79148,2637.5,2637.0,0.7556]
[1727782291028,5.40980371,2637.5,2637.0,4.54778]
[1727782291225,3.79148,2637.5,2637.0,4.54778]
[1727782291423,5.40980371,2637.5,2637.0,4.54778]
[1727782292717,3.79161,2637.4,2637.0,4.54778]
[1727782293463,7.58333,2637.4,2637.0,0.7556]
[1727782293630,3.79161,2637.4,2637.0,0.7556]
[1727782294657,3.79161,2637.4,2637.1,0.17808724]
[1727782297931,4.57551,2637.4,2637.1,0.17808724]
[1727782299218,8.36721,2637.4,2637.1,0.17808724]
[1727782299549,4.57551,2637.4,2637.1,0.17808724]
[1727782302156,0.7839,2637.4,2637.1,0.17808724]
[1727782304388,4.57553,2637.4,2637.1,0.17808724]
[1727782306054,3.79178,2637.3,2637.1,0.17808724]
[1727782307062,3.7919,2637.2,2637.1,0.17808724]
[1727782307400,3.7919,2637.2,2636.8,4.7000825]
[1727782307401,3.7919,2637.2,2636.8,0.9076325]
[1727782307578,3.7919,2637.2,2637.1,0.17813501]
[1727782307766,3.7919,2637.2,2636.8,0.9076325]
[1727782307960,5.41010371,2637.3,2637.1,0.17813501]
[1727782308198,5.41010371,2637.3,2636.8,4.6999825]
[1727782308361,5.41010371,2637.3,2637.2,0.17801704]
[1727782308558,5.41010371,2637.3,2636.8,4.6999825]
[1727782308757,5.41010371,2637.3,2637.2,0.17801704]
[1727782308954,5.41010371,2637.3,2636.8,4.6999825]
[1727782309193,5.41010371,2637.3,2637.2,0.17801704]
[1727782309375,5.41010371,2637.3,2636.8,4.6999825]
[1727782309557,5.41010371,2637.3,2637.2,0.17801704]
[1727782310100,5.41010371,2637.3,2636.8,4.6999825]
[1727782310315,5.41010371,2637.3,2637.2,0.17801704]
[1727782310606,5.41010371,2637.3,2636.9,7.58447]
[1727782310814,3.79178,2637.3,2637.2,0.17801704]
[1727782310964,3.79178,2637.3,2636.9,4.64900455]
[1727782311166,3.79178,2637.3,2637.2,0.17801704]
[1727782311392,3.79178,2637.3,2636.9,4.64900455]
[1727782311602,3.79178,2637.3,2637.2,0.17804833]
[1727782311803,3.79178,2637.3,2636.9,4.64900455]
[1727782312004,3.79178,2637.3,2637.0,0.5556637]
[1727782312301,3.79178,2637.3,2637.1,0.1781663]
[1727782312893,3.79178,2637.3,2636.9,4.64900455]
[1727782313099,3.79191,2637.2,2637.0,0.17828427]
[1727782313765,5.41010371,2637.3,2636.8,4.7000425]
[1727782313963,5.41010371,2637.3,2637.1,0.1781663]
[1727782314178,5.41010371,2637.3,2636.8,4.7000425]
[1727782314381,5.41010371,2637.3,2637.2,0.17804833]
[1727782314612,5.41010371,2637.3,2636.8,4.7000425]
[1727782314781,5.41010371,2637.3,2637.2,0.17804833]
[1727782315319,5.41010371,2637.3,2636.8,4.7000425]
[1727782315526,5.41010371,2637.3,2637.2,0.17804833]
[1727782315708,5.41010371,2637.3,2636.9,3.79232]
[1727782316325,5.41010371,2637.3,2637.0,0.17828427]
[1727782317124,9.20198371,2637.3,2636.8,4.7001025]
[1727782317728,5.41010371,2637.3,2636.9,0.17840225]
[1727782318133,3.79199,2637.2,2636.9,0.17840225]
[1727782318429,1.61832371,2637.1,2636.9,0.17840225]
[1727782319734,3.79196,2637.2,2636.9,0.17840225]
[1727782321104,6.9940735,2637.3,2636.9,0.17840225]
[1727782321502,6.9940735,2637.3,2636.9,3.97071225]
[1727782322127,10.7859035,2637.3,2636.9,3.97071225]
[1727782322296,10.7859235,2637.3,2636.9,3.97071225]
[1727782322633,6.9940735,2637.3,2636.9,3.97071225]
[1727782322987,6.9940735,2637.3,2636.9,0.17840225]
[1727782323327,3.79197,2637.2,2636.9,0.17840225]
[1727782323515,5.37593979,2637.2,2636.9,0.17840225]
[1727782324296,5.41038371,2637.1,2636.9,0.17840225]
[1727782324843,1.61832371,2637.1,2636.9,0.17840225]
[1727782327649,3.2022935,2637.1,2636.9,0.17840225]
[1727782328398,6.9943535,2637.1,2636.9,0.17840225]
[1727782331707,11.96690621,2636.9,2636.8,0.1279325]
[1727782332105,9.19105371,2636.9,2636.8,0.1279325]
[1727782332333,11.96690621,2636.9,2636.8,0.1279325]
[1727782333135,9.19105371,2636.9,2636.8,0.1279325]
[1727782333909,11.96690621,2636.9,2636.8,0.1279325]
[1727782334114,11.96261255,2636.9,2636.8,0.1279325]
[1727782334330,9.19105371,2636.9,2636.8,0.1279325]
[1727782335451,7.57273,2636.9,2636.8,0.1279325]
[1727782335607,9.19105371,2636.9,2636.8,0.1279325]
[1727782336959,11.56347457,2636.9,2636.8,0.1279325]
[1727782337162,9.19105371,2636.9,2636.8,0.1279325]
[1727782337312,11.56271996,2636.9,2636.8,0.1279325]
[1727782338914,11.56196434,2636.9,2636.8,0.1279325]
[1727782340353,9.19105371,2636.9,2636.8,0.1279325]
[1727782340849,11.56196434,2636.9,2636.8,0.1279325]
[1727782341235,9.19105371,2636.9,2636.8,0.1279325]
[1727782343333,7.57273,2636.9,2636.8,0.1279325]
[1727782343680,9.19105371,2636.9,2636.8,0.1279325]
[1727782343847,10.77025712,2636.9,2636.8,0.1279325]
[1727782344054,11.16503338,2636.9,2636.8,0.1279325]
[1727782345674,9.19105371,2636.9,2636.8,0.1279325]
[1727782345836,11.16503338,2636.9,2636.8,0.1279325]
[1727782347789,9.19105371,2636.9,2636.8,0.1279325]
[1727782348452,11.16503338,2636.9,2636.8,0.1279325]
[1727782348651,11.16434164,2636.9,2636.8,0.1279325]
[1727782349048,9.19105371,2636.9,2636.8,0.1279325]
[1727782349491,11.16434164,2636.9,2636.8,0.1279325]
[1727782349790,9.19105371,2636.9,2636.8,0.1279325]
[1727782350088,11.16434164,2636.9,2636.8,0.1279325]
[1727782351965,9.19105371,2636.9,2636.8,0.1279325]
[1727782354554,6.79276,2636.6,2636.5,0.00080379]
[1727782354779,11.14894507,2636.6,2636.5,0.00080379]